{"text_format":"3","workbook":"xlsx","n_sheets":4,"sheets":["Rezeptur_Hauptblatt_Produkt_1","Hilfsberechnung_Halbfabrikate_1","Wertschöpfung_INT_Produkt_1","Wertschöpfung_EXT_Produkt_1"],"not_rendered":{"defined_names":4,"comments":1},"read":"whole","date_system":"1900"}

{"sheet":"Rezeptur_Hauptblatt_Produkt_1","index":0,"n_rows":85,"n_cols":12,"rows_kept":85,"merged":[[0,1,0,3],[2,1,2,3],[7,9,7,10],[8,9,8,10],[9,9,9,10],[10,9,10,10],[11,9,11,10],[12,9,12,10],[13,9,13,10],[14,9,14,10],[15,9,15,10],[16,9,16,10],[17,9,17,10],[18,9,18,10],[19,9,19,10],[20,9,20,10],[21,9,21,10],[22,9,22,10],[23,9,23,10],[24,9,24,10],[25,9,25,10],[26,9,26,10],[27,9,27,10],[28,9,28,10],[29,9,29,10],[35,2,35,3],[36,2,36,3],[37,2,37,3],[38,2,38,3],[39,2,39,3],[40,2,40,3],[41,2,41,3],[42,2,42,3]]}
["Unternehmen:",{"$nulls":4},"Mit Hilfsblatt Halbfabrikate",null,null,"ja",null,null,"Belege beilegen!"]
[]
["Produkt (Sachbezeichnung):"]
[]
["Rezepturprüfung",{"$nulls":5},"Kosten","für Berechnung",null,"Lieferanten/Bescheinigungen"]
["Einheit/Prüfmenge (z.B. 1 kg, 100 kg):",null,"kg*","*andere Einheit",null,null," der Wertschöpfung",null,null,"Belege beilegen!"]
[]
["Zutaten lw. Ursprungs","Regionale Zutat kg* (inkl. CH-Zucker, Spezialitäten = kul. Erbe CH)","CH Zutat kg*","Import-zutat kg*","Nicht berücksichtigtes Halb-fabrikat kg*","Total in % der Zutaten lw. Ursprungs","Beschaffungskosten CHF pro kg*","Kosten total CHF","davon reg. Anrechenbar CHF","Lieferant/ Bemerkung",null,"Spezifikationen, Zertifikate oder Herkunftsbescheinigung für Zwischenprodukte oder Halbfabrikate (AOP, QM Schweizer Fleisch,…)"]
[{"$nulls":5},{"$f":"SUM(B9:E9)/SUM($B$31:$E$31)","v":{"$error":"#DIV/0!"}},null,{"$f":"SUM(B9:E9)*G9","v":0},{"$f":"B9*G9","v":0}]
[{"$nulls":5},{"$f":"SUM(B10:E10)/SUM($B$31:$E$31)","v":{"$error":"#DIV/0!"}},null,0,0]
[{"$nulls":5},{"$error":"#DIV/0!"},null,0,0]
[{"$nulls":5},{"$error":"#DIV/0!"},null,0,0]
[{"$nulls":5},{"$error":"#DIV/0!"},null,0,0]
[{"$nulls":5},{"$error":"#DIV/0!"},null,0,0]
[{"$nulls":5},{"$error":"#DIV/0!"},null,0,0]
[{"$nulls":5},{"$f":"SUM(B16:E16)/SUM($B$31:$E$31)","v":{"$error":"#DIV/0!"}},null,{"$f":"SUM(B16:E16)*G16","v":0},{"$f":"B16*G16","v":0}]
[{"$nulls":5},{"$error":"#DIV/0!"},null,0,0]
[{"$nulls":5},{"$error":"#DIV/0!"},null,0,0]
[{"$nulls":5},{"$error":"#DIV/0!"},null,0,0]
[{"$nulls":5},{"$error":"#DIV/0!"},null,{"$f":"SUM(B20:E20)*G20","v":0},{"$f":"B20*G20","v":0}]
[{"$nulls":5},{"$error":"#DIV/0!"},null,0,0]
[{"$nulls":5},{"$error":"#DIV/0!"},null,0,0]
[{"$nulls":5},{"$error":"#DIV/0!"},null,0,0]
[{"$nulls":5},{"$error":"#DIV/0!"},null,0,0]
[{"$nulls":5},{"$error":"#DIV/0!"},null,0,0]
[{"$nulls":5},{"$error":"#DIV/0!"},null,0,0]
[{"$nulls":5},{"$error":"#DIV/0!"},null,0,0]
["aus Halbfabrikat 1: ",{"$f":"IF($I$1=\"ja\",(Hilfsberechnung_Halbfabrikate_1!D7),0)","v":0},{"$f":"IF($I$1=\"ja\",(Hilfsberechnung_Halbfabrikate_1!E7),0)","v":0},{"$f":"IF($I$1=\"ja\",(Hilfsberechnung_Halbfabrikate_1!F7),0)","v":0},null,{"$f":"SUM(B28:E28)/SUM($B$31:$E$31)","v":{"$error":"#DIV/0!"}},{"$f":"IF(I1=\"ja\",Hilfsberechnung_Halbfabrikate_1!K7,0)","v":0},{"$f":"SUM(B28:E28,B41)*G28","v":0},{"$f":"IF($I$1=\"ja\",(Hilfsberechnung_Halbfabrikate_1!K9*Rezeptur_Hauptblatt_Produkt_1!H28),0)","v":0}]
["aus Halbfabrikat 2: ",{"$f":"IF($I$1=\"ja\",Hilfsberechnung_Halbfabrikate_1!D48,0)","v":0},{"$f":"IF($I$1=\"ja\",Hilfsberechnung_Halbfabrikate_1!E48,0)","v":0},{"$f":"IF($I$1=\"ja\",Hilfsberechnung_Halbfabrikate_1!F48,0)","v":0},null,{"$error":"#DIV/0!"},{"$f":"IF($I$1=\"ja\",Hilfsberechnung_Halbfabrikate_1!K48,0)","v":0},{"$f":"SUM(B29:E29,B42)*G29","v":0},{"$f":"IF($I$1=\"ja\",(Hilfsberechnung_Halbfabrikate_1!K50*Rezeptur_Hauptblatt_Produkt_1!H29),0)","v":0}]
["aus Halbfabrikat 3",{"$f":"IF($I$1=\"ja\",Hilfsberechnung_Halbfabrikate_1!D89,0)","v":0},{"$f":"IF($I$1=\"ja\",Hilfsberechnung_Halbfabrikate_1!E89,0)","v":0},{"$f":"IF($I$1=\"ja\",Hilfsberechnung_Halbfabrikate_1!F89,0)","v":0},null,{"$error":"#DIV/0!"},{"$f":"IF($I$1=\"ja\",Hilfsberechnung_Halbfabrikate_1!K89,0)","v":0},{"$f":"SUM(B30:E30,B43)*G30","v":0},{"$f":"IF($I$1=\"ja\",(Hilfsberechnung_Halbfabrikate_1!K91*Rezeptur_Hauptblatt_Produkt_1!H30),0)","v":0}]
["Spaltentotale",{"$f":"SUM(B9:B30)","v":0},{"$f":"SUM(C9:C30)","v":0},{"$f":"SUM(D9:D30)","v":0},{"$f":"SUM(E9:E30)","v":0},{"$f":"SUM(F9:F30)","v":{"$error":"#DIV/0!"}},null,{"$f":"SUM(H9:H30)","v":0},{"$f":"SUM(I9:I30)","v":0}]
["Total Zutaten lw. Ursprungs",{"$nulls":5},{"$f":"SUM(B31:E31)","v":0}]
["Total regionale Zutaten lw. Ursprungs",{"$nulls":5},{"$f":"B31","v":0}]
["Anteil regionale Zutaten lw. Ursprungs",{"$nulls":5},{"$f":"B31/SUM(B31:E31)","v":{"$error":"#DIV/0!"}}," Sollwert ≥ 80%"]
[]
["Zutaten nicht lw. Ursprungs","Anteil kg*","Lieferant/ Bemerkung",null,"InfoXgen"]
[]
[{"$nulls":9},"Farblegende",null,"gesperrt (Ergebniszellen)"]
[]
[{"$nulls":11},"keine Formel"]
[{"$f":"A28","v":"aus Halbfabrikat 1: "},{"$f":"IF($I$1=\"ja\",Hilfsberechnung_Halbfabrikate_1!G7,0)","v":0}]
[{"$f":"A29","v":"aus Halbfabrikat 2: "},{"$f":"IF($I$1=\"ja\",Hilfsberechnung_Halbfabrikate_1!G48,0)","v":0},{"$nulls":9},"mit Formel hinterlegt,"]
["aus Halbfabrikat 3",{"$f":"IF($I$1=\"ja\",Hilfsberechnung_Halbfabrikate_1!G89,0)","v":0},{"$nulls":9},"veränderbar"]
["Total Zutaten nicht lw. Ursprungs",{"$nulls":4},{"$f":"SUM(B37:B43)","v":{"v":0,"d":"0.000"}},{"$nulls":5},"Dropdown-Liste"]
[]
["Total alle Zutaten / Prüfmenge",{"$nulls":4},{"$f":"SUM(B31:E31)+F44","v":0},{"$f":"IF(F46=B6,\"Total Prüfmenge stimmt überein\",\"Fehler im Total der Zutaten\")","v":"Total Prüfmenge stimmt überein"}]
[]
["Etikette (Deklaration inkl. Zutaten): aufkleben oder beilegen"]
{"$rows_empty":10}
["Bemerkungen:"]
[]
[]
[]
["Mit der Unterschrift wird die Richtigkeit der Angaben bestätigt:"]
[]
["Ort, Datum:",{"$nulls":5},"Name, Vorname, Unterschrift"]
[]
["Leer lassen"]
["Korrekturen/ Entscheid:",{"$nulls":10},"Prüfung durch:"]
[]
[]
[]
[]
[]
["Verfahren:"]
["1. Name Unternehmen und Produkt eintragen"]
["2. Auswahl in Zelle I1, ob Hilfsberechnung Halbfabrikate benutzt oder nicht, Blatt \"Hilfsberechnung_Halbfabrikate\" kann im Fall des Nichtgebrauchs gelöscht werden."]
["3. Festlegung der Einheit / Prüfmenge ( z.B. 100 kg) in Zelle B6, Festlegung einer anderen Einheit als kg (z.B l/hl etc.) in Zelle F6, auf maximal 3 Kommastellen genau"]
["4. Eintragen der Zutaten lw. Ursprungs: Name, Menge nach Herkunft : Regionale Zutat , CH Zutat, Importzutat und der Zutaten nicht landwirtschaftlichen Ursprungs"]
["5. Eintragen der Halbfabrikate wenn Hilfsberechnung Halbfabrikate nicht verwendet: Name, Zutaten lw. Ursprungs: Menge nach Herkunft: Regionale Zutat, CH Zutat, Importzutat. Zutaten nicht lw. Ursprungs: Menge"]
["6. Wenn keine regionale Zuteilung der Halbfabrikate gemacht wird: Eintragung der Menge in Spalte: Nicht berücksichtigtes Halbfabrikat. Beachte: Halbfabrikat wird als nicht regionale Zutat behandelt!"]
["7. Kontrolle: Wert in Zelle F46 'Total alle Zutaten' muss dem Wert  in Zelle B6 'Einheit/ Prüfmenge' entsprechen"]
["8. Lieferanten, Zertifikate und InfoXgen Bestätigungen für Zutaten nicht lw. Ursprungs eintragen. "]
["9. Wenn Wertschöpfungsberechnung berechnet: Eintragen der Kosten pro kg"]
["10. Halbfabrikate: Preis, Kosten und regionaler Anteil werden aus Hilfsberechnung übernommen, sofern diese errechnet wird. Ansonsten Hier eintragen: 'Preis' und 'davon regional anrechenbar'"]
["11. Ergebniszelle: G34: Anteil regionale Zutaten lw. Ursprungs Sollwert >80%"]

{"sheet":"Hilfsberechnung_Halbfabrikate_1","index":1,"n_rows":144,"n_cols":12,"rows_kept":144,"merged":[[3,3,3,5],[5,0,5,1],[5,8,5,9],[6,0,6,1],[8,8,8,9],[9,0,9,6],[9,8,9,11],[11,2,11,4],[11,8,11,11],[13,0,13,1],[14,0,14,1],[15,0,15,1],[16,0,16,1],[17,0,17,1],[18,0,18,1],[19,0,19,1],[20,0,20,1],[21,0,21,1],[22,0,22,1],[23,0,23,1],[26,10,27,11],[32,8,33,9],[44,3,44,5],[46,0,46,1],[46,8,46,9],[47,0,47,1],[49,8,49,9],[50,0,50,6],[50,8,50,11],[52,2,52,4],[52,8,52,11],[54,0,54,1],[55,0,55,1],[56,0,56,1],[57,0,57,1],[58,0,58,1],[59,0,59,1],[60,0,60,1],[61,0,61,1],[62,0,62,1],[63,0,63,1],[64,0,64,1],[67,10,68,11],[73,8,74,9],[85,3,85,5],[87,0,87,1],[87,8,87,9],[88,0,88,1],[90,8,90,9],[91,0,91,6],[91,8,91,11],[93,2,93,4],[95,0,95,1],[96,0,96,1],[97,0,97,1],[98,0,98,1],[99,0,99,1],[100,0,100,1],[101,0,101,1],[102,0,102,1],[103,0,103,1],[104,0,104,1],[105,0,105,1],[108,10,109,11],[114,8,115,9]]}
["Unternehmen:",{"$f":"Rezeptur_Hauptblatt_Produkt_1!B1","v":0},{"$nulls":9},"Belege beilegen!"]
["Produkt:",{"$f":"Rezeptur_Hauptblatt_Produkt_1!B3","v":0}]
[]
["Hilfsblatt Halbfabrikat 1",null,"Lieferant:",{"$nulls":3},"Halbfabrikat:"]
[]
["1. Rezepturprüfung ins Hauptblatt übertragene Mengen",null,"total kg im End-produkt","regionale Zutat lw. kg","CH Zutat lw.  kg","Importzutat lw. Kg","nicht lw. Zutat kg",null,"2.  Kosten / Wertschöpfung                                   ins Hauptblatt übertragene Werte"]
[{"$nulls":3},{"$f":"C26","v":0},{"$f":"D26","v":0},{"$f":"E26","v":0},{"$f":"C37","v":0},null,"Ankaufspreis  Halbfabrikat CHF  pro kg",null,null,"CHF pro kg"]
[]
["Prüfmenge Halbfabrikat ",null,null,"kg ",{"$nulls":4},"Regional anrechenbare Wertschöpfung Halbfabrikat % ",null,{"$f":"IF($K$11=\"innerhalb\",$K$41,$L$41)","v":{"v":0,"d":"0%"}}]
["kann übereinstimmen mit der im Hauptprodukt eingesetzten Menge oder einer selbst festgelegten Prüfmenge oder Prozentangabe, die anschliessend anteilsmässig in der Rezeptur des Hauptproduktes umgerechnet wird (Zeilen 26 und 37) ",{"$nulls":7},"Die Wertschöpfung wird unten berechnet. Der Prozentsatz kann von Vorlieferant geliefert und hier eingegeben werden, Kopien müssen beigelegt werden!"]
[{"$nulls":8},"Betrieb, der Halbfabrikat herstellt liegt (Auswahl treffen!)",null,"ausserhalb","der Region"]
[]
["davon Zutaten lw. Ursprungs",null,"Regionale Zutat kg","CH Zutat kg","Import-zutat kg","Total in % der Zutaten lw. Ursprungs",null,null,"Zutat lw. Ursprungs","Preis pro kg CHF","Kosten total CHF","davon regional anrechenbar CHF"]
[{"$nulls":5},{"$f":"SUM(C14:E14)/SUM($C$25:$E$25)","v":{"$error":"#DIV/0!"}},null,null,{"$f":"A14","v":0},null,{"$f":"SUM(C14:E14)*J14","v":0},{"$f":"C14*J14","v":0}]
[{"$nulls":5},{"$f":"SUM(C15:E15)/SUM($C$25:$E$25)","v":{"$error":"#DIV/0!"}},null,null,0,null,{"$f":"SUM(C15:E15)*J15","v":0},0]
[{"$nulls":5},{"$f":"SUM(C16:E16)/SUM($C$25:$E$25)","v":{"$error":"#DIV/0!"}},null,null,0,null,0,0]
[{"$nulls":5},{"$f":"SUM(C17:E17)/SUM($C$25:$E$25)","v":{"$error":"#DIV/0!"}},null,null,0,null,0,0]
[{"$nulls":5},{"$error":"#DIV/0!"},null,null,0,null,0,0]
[{"$nulls":5},{"$f":"SUM(C19:E19)/SUM($C$25:$E$25)","v":{"$error":"#DIV/0!"}},null,null,0,null,0,0]
[{"$nulls":5},{"$error":"#DIV/0!"},null,null,0,null,0,0]
[{"$nulls":5},{"$error":"#DIV/0!"},null,null,0,null,0,0]
[{"$nulls":5},{"$error":"#DIV/0!"},null,null,0,null,0,0]
[{"$nulls":5},{"$error":"#DIV/0!"},null,null,0,null,0,0]
[{"$nulls":5},{"$error":"#DIV/0!"},null,null,0,null,0,0]
["Spaltentotale",null,{"$f":"SUM(C14:C24)","v":0},{"$f":"SUM(D14:D24)","v":0},0,{"$error":"#DIV/0!"},null,null,"Kosten CHF",null,{"$f":"SUM(K14:K24)","v":0},{"$f":"SUM(L14:L24)","v":0}]
["anteilsmässig zu übertragende Menge kg",null,{"$f":"IF(C25>0,$C$7/$C$9*C25,C25)","v":0},{"$f":"IF(D25>0,$C$7/$C$9*D25,D25)","v":0},{"$f":"IF(E25>0,$C$7/$C$9*E25,E25)","v":0}]
[{"$nulls":8},"Wertschöpfung CHF pro Prüfmenge",null,"Betrieb, der Halb-fabrikat herstellt liegt"]
[]
["Zutaten nicht lw. Ursprungs",null,"kg",{"$nulls":7},"innerhalb","ausserhalb"]
[{"$nulls":8},"Verkaufspreis CHF ",null,{"$f":"(IF(K11=\"innerhalb\",K7*D40,0))","v":0}]
[{"$nulls":8},"-Beschaffungskosten total CHF ",null,{"$f":"(IF(K11=\"innerhalb\",-K25,0))","v":0}]
[]
[{"$nulls":8},"Abzüglich Kosten ausserhalb/                                                             zuzüglich Kosten innerhalb"]
[]
[{"$nulls":8},"+/- Lohnaufträge CHF"]
["Total Zutaten nicht lw. Ursprungs in Prüfmenge",null,{"$f":"SUM(C30:C35)","v":0},{"$nulls":5},"+/- Verpackungskosten CHF"]
["anteilsmässig zu übertragende Menge kg",null,{"$f":"IF(C36>0,$C$7/$C$9*C36,C36)","v":0},{"$nulls":5},"+/- Transportkosten CHF"]
[{"$nulls":8},"+ regional anrechenbare Kosten CHF ",null,{"$f":"(IF($K$11=\"innerhalb\",L25,0))","v":0},{"$f":"IF($K$11=\"ausserhalb\",SUM(L14:L24),0)","v":0}]
[]
["Total erfasste Zutaten / Prüfmenge (kg)",null,null,{"$f":"SUM(C25:E25)+C36","v":0},{"$f":"IF(D40=C9,\"Total Prüfmenge stimmt überein\",\"Fehler im Total der Zutaten\")","v":"Total Prüfmenge stimmt überein"},{"$nulls":3},"= WS Halbfabrikat CHF pro Prüfmenge",null,{"$f":"IF($K$11=\"innerhalb\",K30+K31+SUM(K35:K37)+K38,0)","v":0},{"$f":"IF($K$11=\"ausserhalb\",SUM(L35:L37)+L38,0)","v":0}]
["Anteil regionale Zutaten lw. Ursprungs",{"$nulls":5},{"$f":"IF(SUM(C25:E25)>0,SUM(C25)/SUM(C25:E25),0)","v":{"v":0,"d":"0%"}},null,"in % vom Verkaufspreis",null,{"$f":"IF(D40>0,IF(K11=\"innerhalb\",K40/(K30),0),0)","v":{"v":0,"d":"0%"}},{"$f":"IF(D40>0,IF(K11=\"ausserhalb\",L40/(K7*D40),0),0)","v":{"v":0,"d":"0%"}}]
["Unternehmen:",{"$f":"Rezeptur_Hauptblatt_Produkt_1!B1","v":0},{"$nulls":9},"Belege beilegen!"]
["Produkt:",{"$f":"Rezeptur_Hauptblatt_Produkt_1!B3","v":0}]
[]
["Hilfsblatt Halbfabrikat 2",null,"Lieferant:",{"$nulls":3},"Halbfabrikat:"]
[]
["1. Rezepturprüfung ins Hauptblatt zu übertragende Mengen",null,"total kg","regionale Zutat lw. kg","CH Zutat lw.  kg","Importzutat lw. Kg","nicht lw. Zutat kg",null,"2.  Kosten / Wertschöpfung                                   ins Hauptblatt zu übertragende Werte"]
[{"$nulls":3},{"$f":"C67","v":0},{"$f":"D67","v":0},{"$f":"E67","v":0},{"$f":"C78","v":0},null,"Ankaufspreis  Halbfabrikat CHF  pro kg",null,null,"CHF pro kg"]
[]
["Prüfmenge Halbfabrikat ",null,null,"kg ",{"$nulls":4},"Regional anrechenbare Wertschöpfung Halbfabrikat % ",null,{"$f":"IF(K52=\"innerhalb\",K82,L82)","v":{"v":0,"d":"0%"}}]
["kann übereinstimmen mit der im Hauptprodukt eingesetzten Menge oder einer selbst festgelegten Prüfmenge, die anschliessend anteilsmässig in der Rezeptur des Hauptproduktes umgerechnet wird (Zeilen 67 und 78) ",{"$nulls":7},"Die Wertschöpfung wird unten berechnet. Der Prozentsatz kann von Vorlieferant geliefert und hier eingegeben werden, Belege müssen beigelegt werden!"]
[{"$nulls":8},"Betrieb, der Halbfabrikat herstellt liegt (Auswahl treffen!)",null,"ausserhalb","der Region"]
[]
["davon Zutaten lw. Ursprungs",null,"Regionale Zutat kg","CH Zutat kg","Import-zutat kg","Total in % der Zutaten lw. Ursprungs",null,null,"Zutat lw. Ursprungs","Preis pro kg CHF","Kosten total CHF","davon regional anrechenbar CHF"]
[{"$nulls":5},{"$f":"SUM(C55:E55)/SUM($C$25:$E$25)","v":{"$error":"#DIV/0!"}},null,null,{"$f":"A55","v":0},null,{"$f":"SUM(C55:E55)*J55","v":0},{"$f":"C55*J55","v":0}]
[{"$nulls":5},{"$error":"#DIV/0!"},null,null,0,null,{"$f":"SUM(C56:E56)*J56","v":0},0]
[{"$nulls":5},{"$error":"#DIV/0!"},null,null,0,null,0,0]
[{"$nulls":5},{"$error":"#DIV/0!"},null,null,0,null,0,0]
[{"$nulls":5},{"$error":"#DIV/0!"},null,null,0,null,0,0]
[{"$nulls":5},{"$error":"#DIV/0!"},null,null,0,null,0,0]
[{"$nulls":5},{"$error":"#DIV/0!"},null,null,0,null,0,0]
[{"$nulls":5},{"$error":"#DIV/0!"},null,null,0,null,0,0]
[{"$nulls":5},{"$error":"#DIV/0!"},null,null,0,null,0,0]
[{"$nulls":5},{"$error":"#DIV/0!"},null,null,0,null,0,0]
[{"$nulls":5},{"$error":"#DIV/0!"},null,null,0,null,0,0]
["Spaltentotale",null,{"$f":"SUM(C55:C65)","v":0},{"$f":"SUM(D55:D65)","v":0},{"$f":"SUM(E55:E65)","v":0},{"$error":"#DIV/0!"},null,null,"Kosten CHF",null,{"$f":"SUM(K55:K65)","v":0},{"$f":"SUM(L55:L65)","v":0}]
["anteilsmässig zu übertragende Menge kg",null,{"$f":"IF(C66>0,$C$48/$C$50*C66,C66)","v":0},{"$f":"IF(D66>0,$C$48/$C$50*D66,D66)","v":0},0]
[{"$nulls":8},"Wertschöpfung CHF pro Prüfmenge",null,"Betrieb, der Halb-fabrikat herstellt liegt"]
[]
["Zutaten nicht lw. Ursprungs",null,"kg",{"$nulls":7},"innerhalb","ausserhalb"]
[{"$nulls":8},"Verkaufspreis CHF ",null,{"$f":"(IF($K$52=\"innerhalb\",K48*D81,0))","v":0}]
[{"$nulls":8},"-Beschaffungskosten total CHF ",null,{"$f":"(IF($K$52=\"innerhalb\",-K66,0))","v":0}]
[]
[{"$nulls":8},"Abzüglich Kosten ausserhalb/                                                             zuzüglich Kosten innerhalb"]
[]
[{"$nulls":8},"+/- Lohnaufträge CHF"]
["Total Zutaten nicht lw. Ursprungs in Prüfmenge",null,{"$f":"SUM(C71:C76)","v":0},{"$nulls":5},"+/- Verpackungskosten CHF"]
["anteilsmässig zu übertragende Menge kg",null,{"$f":"IF(C77>0,C48/C50*C77,C77)","v":0},{"$nulls":5},"+/- Transportkosten CHF"]
[{"$nulls":8},"+ regional anrechenbare Kosten CHF ",null,{"$f":"(IF($K$52=\"innerhalb\",L66,0))","v":0},{"$f":"IF($K$52=\"ausserhalb\",SUM(L55:L65),0)","v":0}]
[]
["Total erfasste Zutaten / Prüfmenge (kg)",null,null,{"$f":"SUM(C66:E66)+C77","v":0},{"$f":"IF(D81=C50,\"Total Prüfmenge stimmt überein\",\"Fehler im Total der Zutaten\")","v":"Total Prüfmenge stimmt überein"},{"$nulls":3},"= WS Halbfabrikat CHF pro Prüfmenge",null,{"$f":"IF($K$52=\"innerhalb\",K71+K72+SUM(K76:K78)+K79,0)","v":0},{"$f":"IF($K$52=\"ausserhalb\",SUM(L76:L78)+L79,0)","v":0}]
["Anteil regionale Zutaten lw. Ursprungs",{"$nulls":5},{"$f":"IF(SUM(C66:E66)>0,SUM(C66)/SUM(C66:E66),0)","v":{"v":0,"d":"0%"}},null,"in % vom Verkaufspreis",null,{"$f":"IF(D81>0,IF($K$52=\"innerhalb\",K81/(K71),0),0)","v":{"v":0,"d":"0%"}},{"$f":"IF(D81>0,IF($K$52=\"ausserhalb\",L81/(K48*D81),0),0)","v":{"v":0,"d":"0%"}}]
["Unternehmen:",{"$f":"Rezeptur_Hauptblatt_Produkt_1!B1","v":0},{"$nulls":9},"Belege beilegen!"]
["Produkt:",{"$f":"Rezeptur_Hauptblatt_Produkt_1!B3","v":0}]
[]
["Hilfsblatt Halbfabrikat 3",null,"Lieferant:",{"$nulls":3},"Halbfabrikat:"]
[]
["1. Rezepturprüfung ins Hauptblatt zu übertragende Mengen",null,"total kg","regionale Zutat lw. kg","CH Zutat lw.  kg","Importzutat lw. Kg","nicht lw. Zutat kg",null,"2.  Kosten / Wertschöpfung                                   ins Hauptblatt zu übertragende Werte"]
[{"$nulls":3},{"$f":"C108","v":0},{"$f":"D108","v":0},{"$f":"E108","v":0},{"$f":"C119","v":0},null,"Ankaufspreis  Halbfabrikat CHF  pro kg",null,null,"CHF pro kg"]
[]
["Prüfmenge Halbfabrikat ",null,null,"kg ",{"$nulls":4},"Regional anrechenbare Wertschöpfung Halbfabrikat % ",null,{"$f":"IF(K93=\"innerhalb\",K123,L123)","v":{"v":0,"d":"0%"}}]
["kann übereinstimmen mit der im Hauptprodukt eingesetzten Menge oder einer selbst festgelegten Prüfmenge, die anschliessend anteilsmässig in der Rezeptur des Hauptproduktes umgerechnet wird (Zeilen 108 und119) ",{"$nulls":7},"Die Wertschöpfung wird unten berechnet. Der Prozentsatz kann von Vorlieferant geliefert und hier eingegeben werden, Belege müssen beigelegt werden!"]
[{"$nulls":8},"Betrieb, der Halbfabrikat herstellt liegt (Auswahl treffen!)",null,"ausserhalb","der Region"]
[]
["davon Zutaten lw. Ursprungs",null,"Regionale Zutat kg","CH Zutat kg","Import-zutat kg","Total in % der Zutaten lw. Ursprungs",null,null,"Zutat lw. Ursprungs","Preis pro kg CHF","Kosten total CHF","davon regional anrechenbar CHF"]
[{"$nulls":5},{"$f":"SUM(C96:E96)/SUM($C$25:$E$25)","v":{"$error":"#DIV/0!"}},null,null,{"$f":"A96","v":0},null,{"$f":"SUM(C96:E96)*J96","v":0},{"$f":"C96*J96","v":0}]
[{"$nulls":5},{"$error":"#DIV/0!"},null,null,0,null,{"$f":"SUM(C97:E97)*J97","v":0},0]
[{"$nulls":5},{"$error":"#DIV/0!"},null,null,0,null,0,0]
[{"$nulls":5},{"$error":"#DIV/0!"},null,null,0,null,0,0]
[{"$nulls":5},{"$error":"#DIV/0!"},null,null,0,null,0,0]
[{"$nulls":5},{"$error":"#DIV/0!"},null,null,0,null,0,0]
[{"$nulls":5},{"$error":"#DIV/0!"},null,null,0,null,0,0]
[{"$nulls":5},{"$error":"#DIV/0!"},null,null,0,null,0,0]
[{"$nulls":5},{"$error":"#DIV/0!"},null,null,0,null,0,0]
[{"$nulls":5},{"$error":"#DIV/0!"},null,null,0,null,0,0]
[{"$nulls":5},{"$error":"#DIV/0!"},null,null,0,null,0,0]
["Spaltentotale",null,{"$f":"SUM(C96:C106)","v":0},{"$f":"SUM(D96:D106)","v":0},{"$f":"SUM(E96:E106)","v":0},{"$error":"#DIV/0!"},null,null,"Kosten CHF",null,{"$f":"SUM(K96:K106)","v":0},{"$f":"SUM(L96:L106)","v":0}]
["anteilsmässig zu übertragende Menge kg",null,{"$f":"IF(C107>0,$C$89/$C$91*C107,C107)","v":0},{"$f":"IF(D107>0,$C$89/$C$91*D107,D107)","v":0},{"$f":"IF(E107>0,$C$89/$C$91*E107,E107)","v":0}]
[{"$nulls":8},"Wertschöpfung CHF pro Prüfmenge",null,"Betrieb, der Halb-fabrikat herstellt liegt"]
[]
["Zutaten nicht lw. Ursprungs",null,"kg",{"$nulls":7},"innerhalb","ausserhalb"]
[{"$nulls":8},"Verkaufspreis CHF ",null,{"$f":"(IF(K93=\"innerhalb\",K89*D122,0))","v":0}]
[{"$nulls":8},"-Beschaffungskosten total CHF ",null,{"$f":"(IF(K93=\"innerhalb\",-K107,0))","v":0}]
[]
[{"$nulls":8},"Abzüglich Kosten ausserhalb/                                                             zuzüglich Kosten innerhalb"]
[]
[{"$nulls":8},"+/- Lohnaufträge CHF"]
["Total Zutaten nicht lw. Ursprungs in Prüfmenge",null,{"$f":"SUM(C112:C117)","v":0},{"$nulls":5},"+/- Verpackungskosten CHF"]
["anteilsmässig zu übertragende Menge kg",null,{"$f":"IF(C118>0,$C$89/$C$91*C118,C118)","v":0},{"$nulls":5},"+/- Transportkosten CHF"]
[{"$nulls":8},"+ regional anrechenbare Kosten CHF ",null,{"$f":"(IF(K93=\"innerhalb\",L107,0))","v":0},{"$f":"IF(K93=\"ausserhalb\",SUM(L96:L106),0)","v":0}]
[]
["Total erfasste Zutaten / Prüfmenge (kg)",null,null,{"$f":"SUM(C107:E107)+C118","v":0},{"$f":"IF(D122=C91,\"Total Prüfmenge stimmt überein\",\"Fehler im Total der Zutaten\")","v":"Total Prüfmenge stimmt überein"},{"$nulls":3},"= WS Halbfabrikat CHF pro Prüfmenge",null,{"$f":"IF(K93=\"innerhalb\",K112+K113+SUM(K117:K119)+K120,0)","v":0},{"$f":"IF(K93=\"ausserhalb\",SUM(L117:L119)+L120,0)","v":0}]
["Anteil regionale Zutaten lw. Ursprungs",{"$nulls":5},{"$f":"IF(SUM(C107:E107)>0,SUM(C107)/SUM(C107:E107),0)","v":{"v":0,"d":"0%"}},null,"in % vom Verkaufspreis",null,{"$f":"IF(D122>0,IF($K$93=\"innerhalb\",K122/(K112),0),0)","v":{"v":0,"d":"0%"}},{"$f":"IF(D122>0,IF(K93=\"ausserhalb\",L122/(K89*D122),0),0)","v":{"v":0,"d":"0%"}}]
[]
[]
[]
[]
[]
["Verfahren: "]
["1. Rezepturprüfung"]
["1. Lieferantenname und Name Halbfabrikat eintragen"]
["2. Menge Halbfabrikat in Endprodukt in Kg eintragen"]
["3. Prüfmenge Halbfabrikat festlegen: Kann dieselbe Menge oder unterschiedlich sein vom Anteil im Hauptprodukt (2.), z.B. Prüfmenge  100 kg "]
["4. Zutaten eintragen: Zutaten lw. Ursprungs nach Herkunft, Zutaten nicht landwirtschaftlichen Ursprungs"]
["5. Kontrolle: Total erfasste Zutaten  muss der Prüfmenge entsprechen (3 Kommastellen)"]
["6. Ergebniszeile aus Rezepturprüfung: ins Hauptblatt übertragen werden die Werte total Menge in kg im Hauptprodukt, Anteil  lw. Zutat aus der Region, Anteil lw. Zutat aus der Schweiz, Anteil lw. Zutat Import, Anteil nicht lw. Zutat"]
[]
["2. Kosten / Wertschöpfungsprüfung"]
["1. Ankaufspreis Halbfabrikat pro kg eintragen"]
["2. Falls Wertschöpfung aus separater Berechnung entnommen wird, hier eintragen, sonst zur Berechnung der Wertschöpfung fortschreiten"]
["3. Auswahl: Betrieb der Halbfabrikat herstellt liegt: innerhalb oder ausserhalb (Auswahlliste)"]
["4. Preis pro kg der Zutaten lw. Ursprungs eintragen"]
["5. Entsprechende Werte für Lohnaufträge, Verpackungskosten und Transportkosten eintragen: Ausserhalb der Region: Minus, innerhalb der Region: Plus"]
["6. Ergebniszellen der Berechnung: ins Hauptblatt übertragen werden 'Preis pro kg' und   'regional anrechenbare Wertschöpfung Halbfabrikat %'  "]

{"sheet":"Wertschöpfung_INT_Produkt_1","index":2,"n_rows":31,"n_cols":5,"rows_kept":31,"merged":[[5,0,5,1],[6,0,6,1],[7,0,7,1],[8,0,8,1],[9,0,9,1],[10,0,10,1],[11,0,11,1],[12,0,12,1],[24,2,24,4],[25,2,25,4]]}
["Unternehmen:",{"$f":"Rezeptur_Hauptblatt_Produkt_1!B1","v":0},null,null,"Belege beilegen!"]
[{"$nulls":4},"pro Einheit/Prüfmenge (z.B. 1 kg, 100 kg):"]
["Produkt (Sachbezeichnung):",{"$f":"Rezeptur_Hauptblatt_Produkt_1!B3","v":0},null,null,{"$f":"Rezeptur_Hauptblatt_Produkt_1!B6","v":0}]
[]
["Für Betriebe innerhalb der Markenregion",null,"CHF","%","Bemerkung"]
["Verkaufspreis\nGewichteter durchschnittlicher Verkaufspreis der letzten 12 Monate an nächste Stufe bzw. Einstandspreis für Abnehmer",null,null,{"$f":"C6/$C$6","v":{"$error":"#DIV/0!"}}]
["- Beschaffungskosten Zutaten lw. Ursprungs ohne Halbfabrikat",null,{"$f":"-SUM(Rezeptur_Hauptblatt_Produkt_1!H31)+SUM(Rezeptur_Hauptblatt_Produkt_1!H28:H30)","v":0}]
["- Beschaffungskosten Halbfabrikat 1",null,{"$f":"-Rezeptur_Hauptblatt_Produkt_1!H28","v":0}]
["- Beschaffungskosten Halbfabrikat 2",null,{"$f":"-Rezeptur_Hauptblatt_Produkt_1!H29","v":0}]
["- Beschaffungskosten Halbfabrikat 3",null,{"$f":"-Rezeptur_Hauptblatt_Produkt_1!H30","v":0}]
["- Lohnaufträge an Dritte\nIst bei Wertschöpfung in der Region nur dann abzuziehen, wenn Lohnauftrag ausserhalb der Region stattfindet"]
["-Verpackungskosten\nIst bei Wertschöpfung in der Region nur dann abzuziehen, wenn Verpackungsmaterial ausserhalb der Region bezogen wird"]
["-Transportkosten\nIst bei der Wertschöpfung in der Region abzuziehen, wenn Transportunternehmen ausserhalb der Region liegt"]
["= Innerbetriebliche Regionalwertschöpfung",null,{"$f":"SUM(C6:C13)","v":0},{"$f":"C14/C6","v":{"$error":"#DIV/0!"}}]
["+WS der Zutaten lw. Ursprungs aus der Region",null,{"$f":"SUM(Rezeptur_Hauptblatt_Produkt_1!I9:I27)","v":0}]
["+regional anrechenbare WS Halbfabrikat 1 (nur berechnet, wenn berücksichtigt)",null,{"$f":"Rezeptur_Hauptblatt_Produkt_1!I28","v":0}]
["+regional anrechenbare WS Halbfabrikat 2  (nur berechnet, wenn berücksichtigt)",null,{"$f":"Rezeptur_Hauptblatt_Produkt_1!I29","v":0}]
["+regional anrechenbare WS Halbfabrikat 3  (nur berechnet, wenn berücksichtigt)",null,{"$f":"Rezeptur_Hauptblatt_Produkt_1!I30","v":0}]
[]
["=regionale Bruttowertschöpfung",null,{"$f":"C14+SUM(C15:C18)","v":0},{"$f":"C20/C6","v":{"$error":"#DIV/0!"}},"=Sollwert ≥ 66.67%"]
[]
["Mit der Unterschrift wird die Richtigkeit der Angaben bestätigt:"]
[]
["Ort, Datum:",null,"Name, Vorname, Unterschrift"]
[]
[]
[]
["Verfahren:"]
["1. Verkaufspreis pro Prüfmenge eintragen"]
["2. allfällige Abzüge Lohnaufträge an Dritte, Verpackungs- und Transportkosten einteragen"]
["3. Bemerkungen eintragen"]

{"sheet":"Wertschöpfung_EXT_Produkt_1","index":3,"n_rows":29,"n_cols":5,"rows_kept":29,"merged":[[5,0,5,1],[7,0,7,1],[8,0,8,1],[9,0,9,1],[21,2,21,4],[22,2,22,4]]}
["Unternehmen:",{"$f":"Rezeptur_Hauptblatt_Produkt_1!B1","v":0},null,null,"Belege  beilegen!"]
[{"$nulls":4},"pro Einheit/Prüfmenge (z.B. 1 kg, 100 kg):"]
["Produkt (Sachbezeichnung):",{"$f":"Rezeptur_Hauptblatt_Produkt_1!B3","v":0},null,null,{"$f":"Rezeptur_Hauptblatt_Produkt_1!B6","v":0}]
[]
["Für Betriebe ausserhalb der Markenregion",null,"CHF","%","Bemerkung"]
["Verkaufspreis\nGewichteter durchschnittlicher Verkaufspreis der letzten 12 Monate an nächste Stufe bzw. Einstandspreis für Abnehmer",null,null,{"$f":"C6/$C$6","v":{"$error":"#DIV/0!"}}]
[]
["+ Lohnaufträge an Dritte\nIst bei Wertschöpfung in der Region zu berücksichtigen, wenn Lohnauftrag innerhalb der Region stattfindet"]
["+ Verpackungskosten\nIst bei Wertschöpfung in der Region zu berücksichtigen, wenn Verpackungsmaterial innerhalb der Region bezogen wird"]
["+ Transportkosten\nIst bei der Wertschöpfung in der Region zu berücksichtigen, wenn Transportunternehmen innerhalb der Region liegt"]
["= Innerbetriebliche Regionalwertschöpfung",null,{"$f":"SUM(C8:C10)","v":0},{"$f":"C11/$C$6","v":{"$error":"#DIV/0!"}}]
["+WS der Zutaten lw. Ursprungs aus der Region",null,{"$f":"SUM(Rezeptur_Hauptblatt_Produkt_1!I9:I27)","v":0}]
["+regional anrechenbare WS Halbfabrikat 1 (nur berechnet, wenn berücksichtigt)",null,{"$f":"Rezeptur_Hauptblatt_Produkt_1!I28","v":0}]
["+regional anrechenbare WS Halbfabrikat 2   (nur berechnet, wenn berücksichtigt)",null,{"$f":"Rezeptur_Hauptblatt_Produkt_1!I29","v":0}]
["+regional anrechenbare WS Halbfabrikat 3  (nur berechnet, wenn berücksichtigt)",null,{"$f":"Rezeptur_Hauptblatt_Produkt_1!I30","v":0}]
[]
["=regionale Bruttowertschöpfung",null,{"$f":"C11+SUM(C12:C15)","v":0},{"$f":"C17/C6","v":{"$error":"#DIV/0!"}},"=Sollwert ≥ 66.67%"]
[]
["Mit der Unterschrift wird die Richtigkeit der Angaben bestätigt:"]
[]
["Ort, Datum:",null,"Name, Vorname, Unterschrift"]
[]
[]
[]
[]
["Verfahren: "]
["1. Verkaufspreis pro Prüfmenge eintragen"]
["2. allfällige Zuschläge Lohnaufträge an Dritte, Verpackungs- und Transportkosten eintragen"]
["3. Bemerkungen eintragen"]